Cogmind - Beta 12 *** ADVENTURER MODE // 2024.02.16 @ 02:46:50 Player: nacho Result: Destroyed by as-70811 with Assembled F-torch Performance ------------- Evolutions (0) 0 Regions Visited (3) 600 Robots Destroyed (25) 125 Value Destroyed (140) 140 Prototype IDs (0) 0 Alien Tech Used (0) 0 Bonus (-15) -15 TOTAL SCORE: 850 Bonus ------- Friendly Fire -15 Cogmind --------- Core Integrity 0/250 Matter 288/300 Energy 100/100 System Corruption 0% Temperature Cool (20) Movement Core (50) Location -10/Exiles Parts ------- > --- POWER (1) -------- (None) > --- PROPULSION (2) --- (None) > --- UTILITY (2) ------ Improved Terrain Scanner Terrain Scan Processor > --- WEAPON (2) ------- (None) > --- INVENTORY (5) ---- Light Ion Engine Reinforced Deuterium Engine Wheel Flight Unit Seismic Detector Peak State ------------ > --- POWER ------------ Light Ion Engine > --- PROPULSION ------- Wheel Wheel > --- UTILITY ---------- Improved Terrain Scanner Terrain Scan Processor > --- WEAPON ----------- Light Assault Rifle Light Assault Rifle > --- INVENTORY -------- Light Ion Engine Light Ion Engine Wheel Flight Unit Seismic Detector [Rating: 10] Favorites ----------- Power Light Ion Engine Engine Light Ion Engine Propulsion Wheel Leg Aluminum Leg Wheel Wheel Utility Improved Terrain Scanner Device Improved Terrain Scanner Processor Targeting Computer Weapon Light Assault Rifle Ballistic Gun Light Assault Rifle Build | -11 -10 -10 -10 ------- Run | Jun Mat Min Exi Slots Evolved . | . . . . Power . | . . . . Propulsion . | . . . . Utility . | . . . . Weapon . | . . . . Parts Attached 17 | 7 2 8 . Power 3 | 1 . 2 . Engine 3 | 1 . 2 . Core . | . . . . Reactor . | . . . . Propulsion 5 | 3 1 1 . Treads . | . . . . Leg 1 | 1 . . . Wheel 4 | 2 1 1 . Hover . | . . . . Flight . | . . . . Utility 7 | 1 1 5 . Device 5 | 1 1 3 . Storage . | . . . . Processor 2 | . . 2 . Hackware . | . . . . Protection . | . . . . Artifact . | . . . . Weapon 2 | 2 . . . Energy Gun . | . . . . Energy Cannon . | . . . . Ballistic Gun 2 | 2 . . . Ballistic Cannon . | . . . . Launcher . | . . . . Special Weapon . | . . . . Impact Weapon . | . . . . Slashing Weapon . | . . . . Piercing Weapon . | . . . . Special Melee Weapon . | . . . . Unidentified Prototypes . | . . . . Parts Lost 4 | . . . 4 Power . | . . . . Propulsion 2 | . . . 2 Utility . | . . . . Weapon 2 | . . . 2 Highest Loss Streak 4 | . . . 4 To Critical Strikes . | . . . . Average Slot Usage (%) 96 | . 97 95 97 Engine 13 | . 14 14 13 Wheel 27 | . 28 28 26 Device 16 | . 26 15 14 Processor 8 | . . 8 14 Ballistic Gun 27 | . 28 28 27 Naked Turns . | . . . . Heaviest Build 7 | 6 7 7 6 Greatest Support 20 | 20 20 20 20 Greatest Overweight (x) . | . . . . Average Overweight (x) . | . . . . Largest Inventory Capacity 5 | 5 5 5 5 Average Capacity 5 | 5 5 5 5 Most Carried 5 | 5 5 5 5 Average Carried 4 | 2 4 4 5 Final Capacity 5 | 5 5 5 5 Final Carried 5 | 5 4 5 5 Class Distribution -------------------- 64% | Mutant 35% | Scavenger-Mutant Dominant Class ---------------- Mutant | -10/Materials Mutant | -10/Mines Scavenger-Mutant | -10/Exiles Resources | -11 -10 -10 -10 ----------- Run | Jun Mat Min Exi Matter Collected 558 | 326 37 195 . Remotely . | . . . . Salvage Created 702 | 238 37 427 . Parts 52 | 14 6 32 . Haulers Intercepted . | . . . . Recyclers Shooed 1 | . . 1 . Parts Field Recycled . | . . . . Retrieved Matter . | . . . . Parts Self-Destructed . | . . . . Prevented . | . . . . Kills | -11 -10 -10 -10 ------- Run | Jun Mat Min Exi Combat Hostiles Destroyed 3 | . 3 . . Guns 3 | . 3 . . Classes Destroyed 5 | 3 1 1 . Worker 6 | 2 . 4 . Builder 2 | . . 2 . Tunneler 10 | 5 . 5 . Recycler 4 | 1 . 3 . Swarmer 3 | . 3 . . Best Kill Streak 6 | 6 3 3 . Combat Bots Only 3 | . 3 . . Max Kills in Single Turn 1 | 1 1 1 . Gunslinging . | . . . . Exploded . | . . . . Melee . | . . . . Uniques/NPCs Destroyed . | . . . . Combat | -11 -10 -10 -10 -------- Run | Jun Mat Min Exi Damage Taken 551 | . 60 . 491 Core 250 | . 8 . 242 Absorbed by Shields . | . . . . Core Remaining (%) 100 | 100 . . . Volleys Fired 112 | 28 9 65 10 Largest 2 | 2 2 2 2 Hottest 40 | 40 40 40 40 Shots Fired 220 | 56 18 130 16 Gun 220 | 56 18 130 16 Cannon . | . . . . Launcher . | . . . . Special . | . . . . Kinetic 220 | 56 18 130 16 Thermal . | . . . . Explosive . | . . . . Electromagnetic . | . . . . Robot Hit Streak 28 | 13 8 26 28 Robot Miss Streak 3 | 3 2 1 1 Penetration Max . | . . . . Secondary Targets 1 | . 1 . . Max Gunslinging Chain 1 | . 1 . . Shots Hit Robots 121 | 44 11 60 6 Core Hits 47 | 17 4 26 . Critical Kills . | . . . . Critical Parts Destroyed 1 | 1 . . . Critical Strikes 1 | 1 . . . Destroy 1 | 1 . . . Melee Attacks . | . . . . Impact . | . . . . Slashing . | . . . . Piercing . | . . . . Sneak Attacks . | . . . . Combat Hostiles . | . . . . Follow-up Attacks . | . . . . Damage Inflicted 970 | 346 88 483 53 Guns 970 | 346 88 483 53 Cannons . | . . . . Explosions . | . . . . Melee . | . . . . Ramming . | . . . . Kinetic 970 | 346 88 483 53 Thermal . | . . . . Explosive . | . . . . Electromagnetic . | . . . . Impact . | . . . . Slashing . | . . . . Piercing . | . . . . Highest Corruption . | . . . . Average Corruption . | . . . . Corruption Purged . | . . . . Corruption Blocked . | . . . . Overload Shots . | . . . . Overflow Damage . | . . . . Projectiles . | . . . . Explosions . | . . . . Melee . | . . . . Knockbacks . | . . . . Impact . | . . . . Kinetic . | . . . . Secondary . | . . . . Self-Inflicted Damage . | . . . . Shots . | . . . . Rammed . | . . . . Targets Rammed . | . . . . Kicked . | . . . . Crushed . | . . . . Highest Temperature 15 | . . . 15 Average Temperature 15 | . . . 15 Received Heat Transfer 80 | . . . 80 Siege Activations . | . . . . Robots Corrupted . | . . . . Combat Hostiles . | . . . . Parts Fried . | . . . . Impact Corruptions . | . . . . Robots Melted . | . . . . Combat Hostiles . | . . . . Parts Melted . | . . . . Heat Transferred . | . . . . Parts Sabotaged . | . . . . Parts Stolen . | . . . . Parts Stripped . | . . . . Power Chain Reactions . | . . . . Missiles Intercepted . | . . . . Alert | -11 -10 -10 -10 ------- Run | Jun Mat Min Exi Peak Influence 92 | 40 92 80 . Initial 30 | . 22 30 . Average 31 | 16 36 34 . Maximum Alert Level . | . . . . Low Security (%) 100 | 100 100 100 . Level 1 . | . . . . Level 2 . | . . . . Level 3 . | . . . . Level 4 . | . . . . Level 5 . | . . . . High Security . | . . . . Max Security . | . . . . Squads Dispatched . | . . . . Investigation . | . . . . Extermination . | . . . . Reinforcement . | . . . . Assault . | . . . . Garrison . | . . . . Intercept . | . . . . Searches Triggered . | . . . . Construction Impeded . | . . . . Haulers Reinforced . | . . . . Active Scanning Responses . | . . . . Cargo Convoy Interrupts . | . . . . Stealth | -11 -10 -10 -10 --------- Run | Jun Mat Min Exi Distress Signals . | . . . . Communications Jammed . | . . . . Distress Signals . | . . . . Times Spotted 12 | . 3 . 9 Peak Tracking Total 11 | . 3 . 11 Tactical Retreats . | . . . . Traps | -11 -10 -10 -10 ------- Run | Jun Mat Min Exi Traps Triggered . | . . . . Indirectly . | . . . . Trap Hack Attempts . | . . . . Triggered . | . . . . Disarmed . | . . . . Reprogrammed . | . . . . Reused . | . . . . Traps Extracted . | . . . . Installed . | . . . . Triggered . | . . . . Machines | -11 -10 -10 -10 ---------- Run | Jun Mat Min Exi Machines Disabled . | . . . . Max in Single Turn . | . . . . Machines Repaired . | . . . . Machines Sabotaged . | . . . . Overloaded Fab Kills . | . . . . Hacking | -11 -10 -10 -10 --------- Run | Jun Mat Min Exi Machines Accessed 3 | . 1 . 2 Terminals . | . . . . Fabricators . | . . . . Repair Stations . | . . . . Recycling Units 1 | . 1 . . Scanalyzers . | . . . . Garrison Access . | . . . . Total Hacks 33 | . 1 . 32 Successful 32 | . . . 32 Failed 1 | . 1 . . Catastrophic . | . . . . Database Lockouts . | . . . . Manual 3 | . . . 3 Terminals . | . . . . Fabricators . | . . . . Repair Stations . | . . . . Recycling Units 1 | . 1 . . Scanalyzers . | . . . . Garrison Access . | . . . . Terminal Hacks 32 | . . . 32 Record 32 | . . . 32 Fabricator Hacks . | . . . . Repair Station Hacks . | . . . . Recycling Unit Hacks . | . . . . Scanalyzer . | . . . . Garrison Access Hacks . | . . . . Unauthorized Hacks . | . . . . Terminals . | . . . . Fabricators . | . . . . Repair Stations . | . . . . Recycling Units . | . . . . Scanalyzers . | . . . . Garrison Access . | . . . . Data Cores Recovered . | . . . . Used . | . . . . Hacking Detections . | . . . . Full Trace Events . | . . . . Feedback Events . | . . . . Feedback Blocked . | . . . . Robot Schematics Acquired . | . . . . Robots Built . | . . . . Authchips . | . . . . Time . | . . . . Total Robot Build Rating . | . . . . Part Schematics Acquired . | . . . . Parts Built . | . . . . Authchips . | . . . . Time . | . . . . Total Part Build Rating . | . . . . Parts Repaired . | . . . . Time . | . . . . Parts Recycled . | . . . . Recycled Matter . | . . . . Retrieved Matter . | . . . . Retrieved Components . | . . . . Parts Scanalyzed . | . . . . Part Schematics Acquired . | . . . . Parts Damaged . | . . . . Bothacking | -11 -10 -10 -10 ------------ Run | Jun Mat Min Exi Used RIF Installer . | . . . . Robots Hacked . | . . . . Non-combat . | . . . . Combat . | . . . . Robot Hacks Applied . | . . . . Relay Couplers Released . | . . . . Fabnet Peak Effective % . | . . . . Robots Rewired . | . . . . Allies Hacked . | . . . . Hacks Repelled . | . . . . Allies | -11 -10 -10 -10 -------- Run | Jun Mat Min Exi Total Allies . | . . . . Largest Group . | . . . . Highest-Rated Group . | . . . . Highest-Rated Ally . | . . . . Total Orders . | . . . . Ally Attacks . | . . . . Total Damage . | . . . . Kills . | . . . . Allies Corrupted . | . . . . Allies Melted . | . . . . Intel | -11 -10 -10 -10 ------- Run | Jun Mat Min Exi Robot Analysis Total . | . . . . Derelict Logs Recovered . | . . . . Drone Launches . | . . . . Drone Recoveries . | . . . . Exploration | -11 -10 -10 -10 ------------- Run | Jun Mat Min Exi Turns Passed 1145 | 170 146 618 211 Spaces Moved 982 | 79 146 540 217 Core 15 | 12 . . 3 Treads . | . . . . Legs 36 | 36 . . . Wheels 931 | 31 146 540 214 Hover . | . . . . Flight . | . . . . Fastest Speed 50 | 50 80 80 50 Average Speed 81 | 93 80 80 79 Slowest Speed 120 | 120 80 80 80 Overloaded Moves . | . . . . Propulsion Burnouts . | . . . . Robots Hopped . | . . . . Cave-ins Triggered . | . . . . Exploration Rate (%) 37 | 4 28 70 47 Regions Visited 3 Branch Regions 2 Pre-discovered Areas 2 | . . 1 1 Known Exits Taken . | . . . . Unknown Exits Taken 3 | 1 1 1 . Scrap Searched 1 | . . 1 . Spaces Dug . | . . . . Terrain Destroyed . | . . . . Melee . | . . . . Projectile . | . . . . AOE . | . . . . Terrain Rammed . | . . . . Walls Destroyed . | . . . . Machines Disabled . | . . . . Actions | -11 -10 -10 -10 --------- Run | Jun Mat Min Exi Total 1156 | 130 161 622 243 Wait 2 | 2 . . . Move 979 | 78 145 539 217 Hop . | . . . . Pick Up 20 | 13 2 4 1 Fast Attach 2 | . 1 1 . Attach 6 | 6 . . . Detach . | . . . . Swap 9 | 1 1 7 . Drop 12 | 2 3 6 1 Fire 112 | 28 9 65 10 Melee . | . . . . Ram . | . . . . Kick . | . . . . Crush . | . . . . Escape Stasis . | . . . . Rewire 14 | . . . 14 Trap . | . . . . Miscellaneous . | . . . . Route ------- -11/Junkyard -10/Materials -10/Mines -10/Exiles History --------- Turn | Location | Event 7 | -11/Junkyard | Discovered new exit (range 16) 171 | -11/Junkyard | Entered Materials 278 | -10/Materials | Discovered new exit (range 15) 317 | -10/Materials | Entered Mines 321 | -10/Mines | Build established: Mutant 330 | -10/Mines | Met a Derelict bent on vengeance 624 | -10/Mines | Learned location of Storage (-9) 917 | -10/Mines | Discovered new exit (range 16) 926 | -10/Mines | Deemed a non-threat by the Exiles lab entrance 935 | -10/Mines | Entered Exiles 964 | -10/Exiles | Met 8R-AWN 978 | -10/Exiles | Met EX-HEX 1015 | -10/Exiles | Met EX-DEC 1024 | -10/Exiles | Learned location of Zion (-7) 1030 | -10/Exiles | Build established: Scavenger-Mutant 1051 | -10/Exiles | Met EX-BIN 1128 | -10/Exiles | Attacked by the Exiles 1143 | -10/Exiles | Core integrity fell below 50% 1146 | -10/Exiles | Core integrity fell below 20% 1146 | -10/Exiles | Destroyed by as-70811 with Assembled F-torch Last Messages --------------- 01125_ as-68458 cannot be rewired. 01128_ EXILES: Hostile robot within lab perimeter. Defensive protocols time, folks! 01130_ Lgt. Ion Engine severed. 01134_ Wheel destroyed. 01134_ Assembled Analyzer disabled. 01136_ Penetrated by HV Slug. 01137_ Lgt. Assault Rifle destroyed. 01137_ Machine disabled. 01138_ Wheel destroyed. 01139_ Penetrated by HV Slug. 01139_ Machine disabled. 01141_ Penetrated by HV Slug. 01145_ HV Slug penetrates KF-3GZ(z). 01145_ KF-3GZ(z) suffers critical hit (Destroy). 01145_ Penetrated by HV Slug. 01145_ HV Slug penetrates KF-3GZ(z). 01145_ KF-3GZ(z) suffers critical hit (Destroy). 01145_ KF-3GZ(z) destroyed. 01146_ Lgt. Assault Rifle destroyed. Map ----- +----------------------------------------------------+ | ??????????#" """#??????????#??????????? | | ???#?##??##" """#??????#??????????????? | | #???????###" """#?????????????????????? | | ""#?#???#?#" """##?"??????????????????? | | ""#???##?### """""?????#??????????????? | | ???####### """##?######?????????????? | | ??????####" "X" """""????????#???????????? | | "###?##???#" """ # ???##???????????????? | | ""?##???##?#" """""""""#???"#?#??????????????# | | "?????#???##" ###########??"??????????????????? | | #?#??????##"" ##???###??????#?????????????????? | | ###?######"" #?#?###?#???????#???????#???????# | | #"###""""""" ##?##??????????##?#?????????????? | | """""" " "" ##??############??####????????#? | | "" """ " #####"""""""""####????????????? | | " " " """ """##????#????????? | | "" " ###??????#????? | | " """#??#??????????? | | "a"#?#?????????### | | " "###??###??###" | | "###??##?#?#" | | """""" """#?#?#####" | | ######""" "##?#?### | | ""###??######""" ###### | | """###??#?##?###""" ##### | | """###???#??#?###""" %!@a ### | | ""#???#???##?#?#"" aaaa ## | | ##?#?????#??##""" ### | | #?????##?""" ""#?# | | ?????????"" #"""##?# | | ???? a #######?# | | ??????? c * ##???#?#?# | | ???????? " a ###??####?? | | ???? ???? "" """ ""#?????#?#?? | | ?????????# ##""" " " ""#" "####??????#? | | ???????"??????#?####""" """##"""""""##?#???###?#? | | ????"???????? ????#####""""#?##########?#?##?#???? | | ???????????????###???######?#?#?#####??####??#???? | | ??????????????????#####?#?##??##??#????#?##?????#? | | ???????????????????#####?#?????#?#??####???#?#??#? | | ?????????????????"??###?#???###??#?#??#?###?#???#? | | ????????????????????????###??#?????##?#####??????? | | ?????????????????#??????#????#?#?#?#?????????????? | | ?????????????????????#??#?#?????????#???##???????? | | ??????????????????????#??#????###?##?##??????????? | | ????????????????????#????#????#??#??#????????????? | | ??????????????????????????#??????#???????????????? | | ?????????????????????????????????#?#?????????????? | | ??????????????????????????????#????#?????????????? | | ?????????????????????????????????????????????????? | +----------------------------------------------------+ Best States ------------- Heat Dissipation 25 Energy Generation 10 Energy Capacity 125 Matter Stores 300 Matter Capacity 300 Sight Range 16 Terrain Scan Range 16 Terrain Scan Density 85 Resistance: KI 20 Resistance: TH 20 Resistance: EX 20 Resistance: EM 20 Resistance: I 20 Resistance: S 20 Resistance: P 20 Evasion (%) 55 Targeting Accuracy 5 Offensive Hacking 10 Item Schematics ----------------- None Robot Schematics ------------------ None Fabricated ------------ Nothing Alien Tech Used ----------------- None Achievements -------------- None Challenges ------------ None Game ------ Seed RegenerativeVisualLeg Manual? 0 Play Time 00:21:25 Cumulative 37.7 hours Start 2024.02.16 @ 02:24:42 End 2024.02.16 @ 02:46:50 Sessions 1 Manual Loads 0 Difficulty Adventurer Special Mode None Game No. 20 Rogue 1 Adventurer 19 Explorer 0 Win Type - Total 0 Types 0/0/0/0/0/0/0/0/0 Lore% 14 Gallery% 27 Achievement% 21 Wizard Run 0 Options --------- ASCII 0 Keyboard 0 Movement Mouse Keybinds 0 Fullscreen 1 Font 18/SmallcapsGlow Map View 76x50 Tactical HUD 1 Map Filters NONE Filters NONE Steam 1 RUN: 762aa30d-d956-4c19-94d6-094fdb316e3c